bitfinex/quotes_BTCUSD_20240712
["timestamp","ask_amount","ask_price","bid_price","bid_amount"]
[1720788249551,0.50083,57372.0,57371.0,2.53292051]
[1720788250263,0.50083,57372.0,57371.0,3.06572851]
[1720788250482,0.50083,57372.0,57371.0,2.71712051]
[1720788250688,0.50083,57372.0,57371.0,2.53292051]
[1720788251577,0.50083,57372.0,57371.0,1.88431251]
[1720788252664,0.50083,57372.0,57371.0,1.16409651]
[1720788252881,0.50083,57372.0,57371.0,1.04089651]
[1720788253130,0.50083,57372.0,57371.0,1.10089651]
[1720788253581,0.50083,57372.0,57371.0,0.51798451]
[1720788253808,0.52813113,57372.0,57371.0,0.43808451]
[1720788254236,0.56549473,57372.0,57371.0,0.43808451]
[1720788254694,0.69315759,57372.0,57371.0,0.0001]
[1720788254927,0.73297329,57372.0,57371.0,0.0001]
[1720788255148,0.73306207,57372.0,57371.0,0.21924952]
[1720788255383,0.62879473,57372.0,57371.0,0.33814183]
[1720788255596,0.75928247,57372.0,57371.0,0.33814183]
[1720788255805,0.73321645,57372.0,57371.0,0.33814183]
[1720788256216,0.62891376,57372.0,57371.0,0.24202219]
[1720788256423,0.62891376,57372.0,57371.0,0.33814183]
[1720788256651,0.84278072,57372.0,57371.0,0.0001]
[1720788256870,0.62891376,57372.0,57371.0,0.0001]
[1720788258401,0.78535621,57372.0,57371.0,0.0001]
[1720788258855,0.7854918,57372.0,57371.0,0.0001]
[1720788259110,0.48583797,57372.0,57371.0,0.0001]
[1720788259542,0.48583797,57372.0,57368.0,0.11889231]
[1720788259543,0.28075048,57369.0,57368.0,0.11889231]
[1720788259761,0.34543424,57369.0,57368.0,0.11889231]
[1720788260526,0.34543424,57369.0,57368.0,0.21883499]
[1720788260953,0.47594682,57369.0,57368.0,0.21883499]
[1720788261400,0.34543424,57369.0,57368.0,0.21883499]
[1720788261828,0.10499532,57369.0,57368.0,0.21883499]
[1720788262041,0.10542479,57369.0,57368.0,0.21883499]
[1720788262494,0.1055566,57369.0,57368.0,0.21883499]
[1720788263159,0.1054566,57369.0,57368.0,0.21883499]
[1720788263824,0.1054566,57369.0,57368.0,0.09994268]
[1720788264740,0.1054566,57369.0,57367.0,0.08511435]
[1720788264961,0.06534504,57368.0,57367.0,0.08511435]
[1720788265185,0.02730113,57368.0,57367.0,0.08511435]
[1720788265405,0.06461095,57368.0,57367.0,0.08511435]
[1720788266335,0.06461095,57368.0,57367.0,0.30394934]
[1720788266553,0.06461095,57368.0,57367.0,0.18505703]
[1720788266785,0.06461095,57368.0,57367.0,0.30394934]
[1720788267229,0.06451095,57368.0,57367.0,0.30394934]
[1720788268332,0.06451095,57368.0,57367.0,0.08511435]
[1720788268562,0.02720113,57368.0,57367.0,0.08511435]
[1720788268785,0.06461494,57368.0,57367.0,0.08511435]
[1720788269003,0.06461494,57368.0,57367.0,0.18505703]
[1720788269451,0.06461494,57368.0,57367.0,0.08511435]
[1720788270116,0.06461494,57368.0,57367.0,0.18505703]
[1720788270356,0.06461494,57368.0,57367.0,0.08511435]
[1720788271040,0.22122443,57368.0,57367.0,0.08511435]
[1720788271269,0.06461494,57368.0,57367.0,0.08511435]
[1720788271484,0.22122443,57368.0,57367.0,0.08511435]
[1720788271726,0.22112443,57368.0,57367.0,0.08511435]
[1720788272229,0.22118481,57368.0,57367.0,0.08511435]
[1720788272656,0.22118481,57368.0,57366.0,0.000913]
[1720788272882,0.20781494,57367.0,57366.0,0.000913]
[1720788274006,0.12491494,57367.0,57366.0,0.000913]
[1720788274248,0.12491494,57367.0,57366.0,0.21974799]
[1720788274458,0.22120648,57367.0,57366.0,0.21974799]
[1720788274680,0.06451494,57367.0,57366.0,0.10085568]
[1720788274902,0.02710113,57367.0,57366.0,0.10085568]
[1720788275116,0.04905317,57369.0,57366.0,0.21974799]
[1720788275117,0.02710113,57368.0,57366.0,0.21974799]
[1720788275339,0.02710113,57368.0,57367.0,0.08511435]
[1720788275571,0.18378235,57368.0,57367.0,0.20400666]
[1720788276070,0.18378235,57368.0,57367.0,0.1638951]
[1720788276730,0.02710113,57368.0,57367.0,0.1638951]
[1720788276942,0.18378281,57368.0,57367.0,0.1638951]
[1720788277148,0.02710113,57368.0,57367.0,0.04500279]
[1720788278019,0.02710113,57368.0,57366.0,0.10085568]
[1720788278020,0.06304561,57368.0,57366.0,0.000913]
[1720788278229,0.03016466,57367.0,57366.0,0.000913]
[1720788278459,0.2,57370.0,57366.0,0.000913]
[1720788278696,0.02730902,57369.0,57366.0,0.000913]
[1720788278925,0.02730902,57368.0,57366.0,0.000913]
[1720788279143,0.02730902,57370.0,57367.0,0.0001]
[1720788279370,0.02730916,57369.0,57367.0,0.0001]
[1720788279609,0.02730916,57370.0,57367.0,0.0001]
[1720788279815,0.02730916,57369.0,57367.0,0.0001]
[1720788280024,0.02730916,57370.0,57367.0,0.0001]
[1720788280234,0.02730916,57369.0,57367.0,0.0001]
[1720788280451,0.02730916,57368.0,57367.0,0.0001]
[1720788280671,0.02730916,57370.0,57367.0,0.0001]
[1720788280910,0.22730916,57369.0,57367.0,0.0001]
[1720788281119,0.02730916,57368.0,57367.0,0.0001]
[1720788281547,0.2597346,57368.0,57367.0,0.0001]
[1720788281756,0.02730916,57368.0,57367.0,0.0001]
[1720788281968,0.02730916,57369.0,57367.0,0.0001]
[1720788282243,0.00487731,57371.0,57367.0,0.0001]
[1720788282244,0.02730916,57368.0,57367.0,0.0001]
[1720788282468,0.03242544,57368.0,57367.0,0.0001]
[1720788282692,0.0597346,57368.0,57367.0,0.0001]
[1720788282912,0.09710567,57368.0,57367.0,0.0001]
[1720788283131,0.06468023,57368.0,57367.0,0.0001]
[1720788284301,0.06468023,57368.0,57367.0,0.11899231]
[1720788284518,0.22130839,57368.0,57367.0,0.11899231]
[1720788284703,0.02730916,57368.0,57367.0,0.11899231]
[1720788284925,0.02730916,57368.0,57367.0,0.0001]
[1720788285152,0.02730916,57371.0,57367.0,0.0001]
[1720788285376,0.0372681,57370.0,57367.0,0.0001]
[1720788285601,0.06457726,57369.0,57367.0,0.0001]
[1720788285824,0.02504606,57370.0,57367.0,0.0001]
[1720788285825,0.06457726,57368.0,57367.0,0.0001]
[1720788287690,0.24079275,57368.0,57367.0,0.0001]
[1720788288649,0.24104134,57368.0,57367.0,0.0001]
[1720788289297,0.43309993,57368.0,57367.0,0.0001]
[1720788289525,0.43309993,57368.0,57354.0,0.61062879]
[1720788289526,0.2,57367.0,57355.0,0.00306353]
[1720788289765,0.2,57367.0,57354.0,0.61062879]
[1720788289766,0.15663162,57359.0,57354.0,0.61062879]
[1720788289988,0.22146063,57358.0,57355.0,0.08511435]
[1720788290211,0.06482901,57357.0,57355.0,0.08511435]
[1720788290428,0.2,57366.0,57355.0,0.08511435]
[1720788290429,0.06482901,57356.0,57355.0,0.08511435]
[1720788291343,0.06482901,57356.0,57353.0,0.09994268]
[1720788291601,0.15663162,57358.0,57355.0,0.08511435]
[1720788291847,0.0378793,57357.0,57355.0,0.08511435]
[1720788292087,0.06519189,57356.0,57353.0,0.09994268]
[1720788292300,0.02731289,57355.0,57353.0,0.09994268]
[1720788292518,0.03713992,57354.0,57353.0,0.09994268]
[1720788292737,0.06445281,57354.0,57353.0,0.21883499]
[1720788293418,0.16884497,57354.0,57353.0,0.21883499]
[1720788293896,0.16874497,57354.0,57353.0,0.33973499]
[1720788294134,0.14254767,57354.0,57353.0,0.33973499]
[1720788294366,0.06425281,57354.0,57353.0,0.33973499]
[1720788295507,0.14255539,57354.0,57353.0,0.36273499]
[1720788295739,0.14255539,57354.0,57353.0,0.53709299]
[1720788296187,0.06425281,57354.0,57353.0,0.53709299]
[1720788296443,0.06415281,57354.0,57353.0,1.31212699]
[1720788296695,0.02731289,57354.0,57353.0,1.31212699]
[1720788296909,0.13048925,57361.0,57356.0,0.27883499]
[1720788296910,0.07832326,57359.0,57356.0,0.27883499]
[1720788297129,0.10439216,57360.0,57358.0,0.11889231]
[1720788297367,0.10439216,57360.0,57359.0,0.21883499]
[1720788297623,0.0273077,57360.0,57359.0,0.21883499]
[1720788297842,0.15659246,57362.0,57361.0,0.09994268]
[1720788298065,0.15659246,57362.0,57361.0,0.21883499]
[1720788298066,0.18390198,57362.0,57361.0,0.21883499]
[1720788298289,0.02730952,57362.0,57361.0,0.21883499]
[1720788298525,0.15673621,57363.0,57361.0,0.21883499]
[1720788298789,0.15673621,57363.0,57362.0,0.22189852]
[1720788299014,0.15673621,57364.0,57363.0,0.11889231]
[1720788299238,0.02730812,57364.0,57363.0,0.20400666]
[1720788299461,0.15686463,57364.0,57363.0,0.30394934]
[1720788299691,0.17632824,57369.0,57366.0,0.11889231]
[1720788299932,0.20363637,57368.0,57367.0,0.00306353]
[1720788300416,0.02730813,57368.0,57363.0,0.00306353]
[1720788300650,0.02730813,57371.0,57367.0,0.0001]
[1720788300871,0.02731011,57370.0,57367.0,0.0001]
[1720788301095,0.02731011,57369.0,57367.0,0.0001]
[1720788301337,0.10271011,57368.0,57367.0,0.0001]
[1720788302765,0.02731011,57368.0,57367.0,0.0001]
[1720788302994,0.02731011,57371.0,57369.0,0.11889231]
[1720788303218,0.02730704,57371.0,57370.0,0.11889231]
[1720788303680,0.20383534,57371.0,57370.0,0.11889231]
[1720788303967,0.02730704,57371.0,57370.0,0.21883499]
[1720788304184,0.02730704,57371.0,57370.0,0.47614199]
[1720788304411,0.02730704,57371.0,57370.0,0.24183499]
[1720788304412,0.06494087,57371.0,57370.0,0.24183499]
[1720788304671,0.06494087,57371.0,57370.0,0.32694934]
[1720788305798,0.06494087,57371.0,57370.0,0.38694934]
[1720788306031,0.1956461,57371.0,57370.0,1.26197015]
[1720788306323,0.06494087,57371.0,57370.0,0.38694934]
[1720788306713,0.06494087,57371.0,57370.0,0.56125634]
[1720788306714,0.1956461,57371.0,57370.0,0.56125634]
[1720788306968,0.10570599,57371.0,57370.0,1.25848434]
[1720788307221,0.14845588,57379.0,57378.0,0.21883499]
[1720788307466,0.03760434,57379.0,57378.0,0.21883499]
[1720788309058,0.03760434,57379.0,57378.0,0.09994268]
[1720788310747,0.03765987,57379.0,57377.0,0.09994268]
[1720788311017,0.17627988,57386.0,57378.0,0.00306353]
[1720788311238,0.03766006,57385.0,57378.0,0.00306353]
[1720788311501,0.03766006,57384.0,57380.0,0.11889231]
[1720788311729,0.18549007,57386.0,57381.0,0.11889231]
[1720788311730,0.03766006,57383.0,57381.0,0.11889231]
[1720788311949,0.03766006,57382.0,57380.0,0.21883499]
[1720788312180,0.03766006,57381.0,57380.0,0.21883499]
[1720788312399,0.03766006,57386.0,57380.0,0.21883499]
[1720788312622,0.03766006,57385.0,57380.0,0.21883499]
[1720788312867,0.03766006,57384.0,57380.0,0.21883499]
[1720788313097,0.03766006,57383.0,57380.0,0.09994268]
[1720788313319,0.03766006,57383.0,57376.0,0.11889231]
[1720788313320,0.19428457,57382.0,57376.0,0.09994268]
[1720788313543,0.03766006,57381.0,57378.0,0.09994268]
[1720788314010,0.03804529,57380.0,57378.0,0.09994268]
[1720788314310,0.15662451,57382.0,57381.0,0.11889231]
[1720788314553,0.03813521,57382.0,57381.0,0.11889231]
[1720788314773,0.03813521,57382.0,57380.0,0.21883499]
[1720788314995,0.03813521,57381.0,57380.0,0.21883499]
[1720788317268,0.0380442,57381.0,57380.0,0.21883499]
[1720788319149,0.16846937,57381.0,57380.0,0.21893499]
[1720788319685,0.0380442,57381.0,57380.0,0.21893499]
[1720788319935,0.14236871,57381.0,57380.0,0.21893499]
[1720788320176,0.0380442,57381.0,57380.0,0.21893499]
[1720788320425,0.00896484,57387.0,57380.0,0.21893499]
[1720788320695,0.00896484,57387.0,57386.0,0.11889231]
[1720788320916,0.03813993,57388.0,57387.0,0.11889231]
[1720788321145,0.03814038,57388.0,57387.0,0.11889231]
[1720788322078,0.16849575,57388.0,57387.0,0.11889231]
[1720788322313,0.03814038,57388.0,57387.0,0.11889231]
[1720788323061,0.14239804,57388.0,57387.0,0.21883499]
[1720788323413,0.10425766,57394.0,57393.0,0.11889231]
[1720788323659,0.16473834,57401.0,57400.0,0.21883499]
[1720788323660,0.11248526,57401.0,57400.0,0.21883499]
[1720788323911,0.15063205,57401.0,57400.0,0.21883499]
[1720788324133,0.04642634,57401.0,57400.0,0.21883499]
[1720788325259,0.00828,57401.0,57400.0,0.21883499]
[1720788326425,0.00828,57401.0,57400.0,0.49375099]
[1720788326642,0.00828,57401.0,57400.0,0.84218299]
[1720788326837,0.00828,57401.0,57400.0,0.90218299]
[1720788327110,0.00828,57401.0,57400.0,1.66044699]
[1720788328764,0.00828,57401.0,57400.0,1.86044699]
[1720788331029,0.00828,57401.0,57400.0,1.66044699]
[1720788331296,0.00828,57401.0,57400.0,0.90358299]
[1720788331520,0.00828,57401.0,57400.0,0.967733]
[1720788332008,0.00828,57401.0,57400.0,0.385085]
[1720788332243,0.00828,57401.0,57400.0,0.559301]
[1720788332463,0.00828,57401.0,57400.0,0.385085]
[1720788332724,0.00828,57401.0,57400.0,0.10409269]
[1720788333872,0.00828,57401.0,57400.0,0.10419269]
[1720788334144,0.00828,57401.0,57400.0,0.00425001]
[1720788334378,0.616807,57401.0,57400.0,0.00425001]
[1720788334601,0.616807,57401.0,57384.0,0.4664]
[1720788334602,0.0637,57395.0,57385.0,0.61062879]
[1720788334820,0.2542,57393.0,57385.0,0.61062879]
[1720788335067,0.11300135,57392.0,57384.0,0.4664]
[1720788335279,0.03740135,57391.0,57384.0,0.56634268]
[1720788335686,0.0756,57392.0,57384.0,0.56634268]
[1720788335939,0.0755,57392.0,57386.0,0.21883499]
[1720788336213,0.0636,57395.0,57388.0,0.09994268]
[1720788336439,0.03784982,57394.0,57388.0,0.09994268]
[1720788336686,0.0636,57395.0,57386.0,0.09994268]
[1720788336916,0.03794158,57394.0,57388.0,0.09994268]
[1720788337133,0.0636,57395.0,57386.0,0.21883499]
[1720788337357,0.0636,57395.0,57384.0,0.4664]
[1720788337358,0.03794101,57394.0,57384.0,0.56634268]
[1720788337585,0.03794101,57393.0,57386.0,0.09994268]
[1720788337802,0.03794101,57392.0,57386.0,0.09994268]
[1720788338058,0.03794101,57391.0,57386.0,0.09994268]
[1720788338278,0.03794101,57390.0,57386.0,0.09994268]
[1720788338528,0.07253959,57395.0,57386.0,0.09994268]
[1720788338766,0.03780973,57394.0,57386.0,0.09994268]
[1720788338982,0.07253959,57395.0,57390.0,0.11889231]
[1720788338983,0.03780973,57393.0,57390.0,0.11889231]
[1720788339229,0.07253959,57395.0,57391.0,0.11889231]
[1720788339454,0.08789355,57395.0,57388.0,0.09994268]
[1720788339678,0.03779671,57394.0,57384.0,0.4664]
[1720788339903,0.03779671,57394.0,57381.0,0.09994268]
[1720788339904,0.03779671,57393.0,57381.0,0.09994268]
[1720788340135,0.03779671,57393.0,57376.0,0.55151435]
[1720788340136,0.03779671,57392.0,57382.0,0.09994268]
[1720788340381,0.01256903,57393.0,57376.0,0.67040666]
[1720788340382,0.01256903,57393.0,57381.0,0.09994268]
[1720788340604,0.2,57394.0,57381.0,0.09994268]
[1720788341051,0.08789355,57395.0,57382.0,0.09994268]
[1720788341296,0.08789355,57395.0,57380.0,0.09994268]
[1720788341297,0.2,57394.0,57380.0,0.09994268]
[1720788341515,0.2,57392.0,57382.0,0.09994268]
[1720788341744,0.02878936,57393.0,57382.0,0.09994268]
[1720788341966,0.2,57394.0,57382.0,0.09994268]
[1720788342405,0.2,57394.0,57380.0,0.09994268]
[1720788342709,0.07253959,57395.0,57382.0,0.18505703]
[1720788342799,0.10790733,57398.0,57382.0,0.18505703]
[1720788343039,0.30790733,57398.0,57382.0,0.18505703]
[1720788343259,0.10790733,57398.0,57382.0,0.30394934]
[1720788343485,0.10398468,57400.0,57387.0,0.09994268]
[1720788343706,0.00828,57401.0,57387.0,0.09994268]
[1720788343707,0.00916527,57398.0,57387.0,0.09994268]
[1720788343943,0.00828,57401.0,57389.0,0.11889231]
[1720788344163,0.00828,57401.0,57390.0,0.11889231]
[1720788344831,0.00828,57401.0,57391.0,0.11889231]
[1720788345337,0.00828,57401.0,57393.0,0.09994268]
[1720788345563,0.01723335,57401.0,57393.0,0.09994268]
[1720788345788,0.1377,57400.0,57394.0,0.00306353]
[1720788346246,0.2542,57397.0,57385.0,0.51068611]
[1720788346469,0.184646,57396.0,57385.0,0.51068611]
[1720788346715,0.2542,57397.0,57384.0,0.4664]
[1720788347104,0.2542,57397.0,57384.0,0.58529231]
[1720788347105,0.2541,57397.0,57384.0,0.58529231]
[1720788347330,0.1377,57400.0,57387.0,0.11889231]
[1720788347331,0.26775549,57400.0,57387.0,0.11889231]
[1720788347880,0.26775549,57400.0,57386.0,0.09994268]
[1720788347881,0.13005549,57398.0,57386.0,0.09994268]
[1720788348118,0.13005549,57399.0,57387.0,0.11889231]
[1720788348321,0.16748186,57398.0,57387.0,0.11889231]
[1720788348528,0.16748186,57398.0,57389.0,0.11889231]
[1720788348529,0.03742637,57397.0,57389.0,0.11889231]
[1720788348726,0.03742637,57396.0,57389.0,0.11889231]
[1720788348988,0.03742637,57395.0,57391.0,0.11889231]
[1720788349209,0.03742637,57394.0,57392.0,0.09994268]
[1720788349451,0.03742637,57398.0,57392.0,0.21883499]
[1720788349688,0.03742637,57397.0,57392.0,0.21883499]
[1720788349932,0.03742637,57396.0,57392.0,0.09994268]
[1720788350147,0.03742637,57395.0,57394.0,0.11889231]
[1720788350395,0.13018127,57400.0,57395.0,0.11889231]
[1720788350609,0.00818754,57401.0,57392.0,0.09994268]
[1720788350610,0.03753808,57399.0,57392.0,0.09994268]
[1720788350823,0.16194855,57401.0,57392.0,0.09994268]
[1720788350824,0.03753808,57398.0,57392.0,0.09994268]
[1720788351045,0.03753808,57397.0,57392.0,0.09994268]
[1720788351260,0.03753808,57396.0,57392.0,0.09994268]
[1720788351511,0.03753808,57395.0,57392.0,0.09994268]
[1720788351727,0.13836881,57401.0,57395.0,0.0956617]
[1720788351948,0.0376573,57400.0,57397.0,0.11889231]
[1720788352189,0.00818754,57401.0,57397.0,0.11889231]
[1720788352190,0.0376573,57399.0,57397.0,0.11889231]
[1720788352409,0.00818754,57401.0,57397.0,0.11889231]
[1720788352410,0.08630699,57401.0,57400.0,0.11889231]
[1720788352629,0.12395634,57401.0,57399.0,0.11889231]
[1720788352882,0.00818754,57401.0,57399.0,0.11889231]
[1720788353112,0.00818754,57401.0,57397.0,0.0777]
[1720788353113,0.00818754,57401.0,57400.0,0.11889231]
[1720788353385,0.12372317,57401.0,57400.0,0.11889231]
[1720788353615,0.1236307,57401.0,57400.0,0.11889231]
[1720788354070,0.04550777,57401.0,57399.0,0.11889231]
[1720788354284,0.0374127,57400.0,57399.0,0.11889231]
[1720788354750,0.11553563,57400.0,57399.0,0.11889231]
[1720788354953,0.11553563,57400.0,57397.0,0.0777]
[1720788354954,0.11553563,57400.0,57397.0,0.19659231]
[1720788355199,0.0374127,57399.0,57397.0,0.19659231]
[1720788355692,0.11553563,57399.0,57397.0,0.19659231]
[1720788355925,0.0374127,57398.0,57397.0,0.19659231]
[1720788356156,0.03744773,57398.0,57397.0,0.19659231]
[1720788356632,0.03744773,57398.0,57397.0,0.0777]
[1720788356864,0.03744773,57398.0,57392.0,0.0793]
[1720788357107,0.2017354,57397.0,57390.0,0.11889231]
[1720788357328,0.2017354,57397.0,57392.0,0.11889231]
[1720788357329,0.1416354,57396.0,57392.0,0.11889231]
[1720788357566,0.03744773,57395.0,57393.0,0.11889231]
[1720788357801,0.03744773,57394.0,57390.0,0.11889231]
[1720788358065,0.03744773,57393.0,57390.0,0.11889231]
[1720788358272,0.10418767,57395.0,57390.0,0.11889231]
[1720788358273,0.03744773,57392.0,57390.0,0.11889231]
[1720788358487,0.03744773,57391.0,57390.0,0.11889231]
[1720788359383,0.32739507,57401.0,57390.0,0.11889231]
[1720788359606,0.32739507,57401.0,57388.0,0.4664]
[1720788359607,0.10421523,57394.0,57391.0,0.12195584]
[1720788359861,0.03702227,57393.0,57392.0,0.21455401]
[1720788360082,0.03702227,57393.0,57392.0,0.29395401]
[1720788361467,0.03702227,57393.0,57392.0,0.35395401]
[1720788361747,0.03702227,57393.0,57392.0,0.43695401]
[1720788361982,0.13836411,57401.0,57400.0,0.11889231]
[1720788361983,0.13835565,57401.0,57400.0,0.11889231]
[1720788362221,0.13835565,57401.0,57399.0,0.0956617]
[1720788362222,0.13836382,57401.0,57399.0,0.0956617]
[1720788362452,0.16744983,57400.0,57399.0,0.21455401]
[1720788362691,0.14139657,57400.0,57399.0,0.21455401]
[1720788362919,0.03717791,57400.0,57399.0,0.21455401]
[1720788363374,0.03717791,57400.0,57399.0,0.29305401]
[1720788363595,0.03717791,57400.0,57399.0,0.35495401]
[1720788363825,0.03717791,57400.0,57399.0,0.41495401]
[1720788364044,0.03717791,57400.0,57399.0,0.41505401]
[1720788364767,0.03717791,57400.0,57399.0,0.35505401]
[1720788364985,0.08626135,57401.0,57400.0,0.21455401]
[1720788365210,0.12344378,57401.0,57400.0,0.21455401]
[1720788365941,0.0452775,57401.0,57399.0,0.0957617]
[1720788366167,0.14141557,57400.0,57399.0,0.21465401]
[1720788366628,0.14142218,57400.0,57399.0,0.21465401]
[1720788366884,0.11535955,57400.0,57399.0,0.35335401]
[1720788367109,0.03718243,57400.0,57399.0,0.35335401]
[1720788367327,0.03718243,57400.0,57399.0,0.21465401]
[1720788367755,0.14142218,57400.0,57399.0,0.21465401]
[1720788368311,0.03729738,57400.0,57399.0,0.21465401]
[1720788368395,0.11547546,57400.0,57399.0,0.21465401]
[1720788369365,0.14153482,57400.0,57399.0,0.21465401]
[1720788369656,0.11547428,57400.0,57399.0,0.21465401]
[1720788369926,0.11547428,57400.0,57399.0,0.0001]
[1720788369927,0.03729738,57400.0,57399.0,0.0001]
[1720788370396,0.19365354,57400.0,57399.0,0.0001]
[1720788370628,0.03729738,57400.0,57399.0,0.0001]
[1720788371086,0.19365354,57400.0,57399.0,0.0001]
[1720788371308,0.037646,57400.0,57399.0,0.0001]
[1720788372052,0.037646,57400.0,57399.0,0.0957617]
[1720788372291,0.037646,57400.0,57399.0,0.21465401]
[1720788373702,0.037646,57400.0,57399.0,0.0001]
[1720788373703,0.04676416,57400.0,57399.0,0.0001]
[1720788374162,0.20315086,57400.0,57399.0,0.0001]
[1720788374629,0.00911816,57400.0,57399.0,0.21465401]
[1720788374851,0.00809507,57401.0,57400.0,0.21455401]
[1720788375323,0.04589674,57401.0,57400.0,0.21455401]
[1720788375766,0.17629358,57401.0,57400.0,0.21455401]
[1720788376239,0.04589674,57401.0,57399.0,0.0957617]
[1720788376462,0.00809507,57401.0,57400.0,0.21455401]
[1720788376785,0.17629083,57401.0,57400.0,0.21455401]
[1720788376997,0.04585315,57401.0,57400.0,0.21455401]
[1720788377915,0.04605862,57401.0,57400.0,0.21455401]
[1720788380890,0.17655427,57401.0,57400.0,0.21455401]
[1720788381180,0.04605862,57401.0,57400.0,0.21455401]
[1720788381401,0.17655441,57401.0,57400.0,0.21455401]
[1720788381631,0.04605862,57401.0,57400.0,0.20955401]
[1720788383627,0.17655445,57401.0,57400.0,0.20955401]
[1720788384134,0.04605862,57401.0,57400.0,0.20955401]
[1720788384391,0.13860093,57401.0,57400.0,0.21303793]
[1720788384638,0.17722819,57401.0,57400.0,0.20955401]
[1720788384860,0.04672235,57401.0,57400.0,0.29255401]
[1720788385141,0.12501886,57401.0,57400.0,0.86462427]
[1720788385388,0.00809507,57401.0,57400.0,1.95366601]
[1720788385868,0.002,57409.0,57408.0,1.4300017]
[1720788386107,0.002,57409.0,57408.0,2.39269401]
[1720788386333,0.002,57409.0,57408.0,1.90849401]
[1720788386803,0.002,57409.0,57408.0,1.56011101]
[1720788387028,0.002,57409.0,57408.0,1.55511101]
[1720788387266,0.002,57409.0,57408.0,0.36995401]
[1720788387612,0.002,57409.0,57408.0,0.42995401]
[1720788387710,0.002,57409.0,57408.0,0.28415401]
[1720788387951,0.002,57409.0,57408.0,0.0956617]
[1720788387952,0.0402677,57409.0,57408.0,0.0956617]
[1720788388196,0.17061007,57409.0,57408.0,0.0956617]
[1720788388432,0.0402677,57409.0,57406.0,0.0956617]
[1720788388685,0.0382677,57408.0,57406.0,0.0956617]
[1720788389141,0.07091188,57414.0,57406.0,0.0956617]
[1720788389608,0.07091188,57414.0,57401.0,0.0956617]
[1720788389837,0.13039285,57402.0,57401.0,0.0956617]
[1720788390095,0.5253262,57413.0,57399.0,0.0001]
[1720788390096,0.1759622,57412.0,57400.0,0.0956617]
[1720788390311,0.13039806,57401.0,57400.0,0.0956617]
[1720788390556,0.13039806,57401.0,57400.0,0.21455401]
[1720788390783,0.13040473,57401.0,57400.0,0.21455401]
[1720788391013,0.13040473,57401.0,57400.0,0.11889231]
[1720788391236,0.17604639,57410.0,57400.0,0.0956617]
[1720788391478,0.02563562,57410.0,57400.0,0.0956617]
[1720788392172,0.0632,57409.0,57400.0,0.0956617]
[1720788392403,0.0632,57409.0,57400.0,0.21455401]
[1720788392672,0.0632,57409.0,57401.0,0.11889231]
[1720788392897,0.0896882,57409.0,57401.0,0.11889231]
[1720788393345,0.0632,57409.0,57401.0,0.11889231]
[1720788393568,0.0632,57409.0,57400.0,0.0956617]
[1720788394310,0.0632,57409.0,57399.0,0.0001]
[1720788394311,0.23932049,57409.0,57399.0,0.0001]
[1720788394546,0.43032049,57403.0,57399.0,0.0001]
[1720788394778,0.06303205,57402.0,57399.0,0.0001]
[1720788394998,0.17612049,57402.0,57399.0,0.0001]
[1720788395281,0.0821,57407.0,57399.0,0.0001]
[1720788395282,0.17612049,57403.0,57399.0,0.0001]
[1720788395503,0.17612049,57404.0,57399.0,0.0001]
[1720788395725,0.17612049,57403.0,57401.0,0.11889231]
[1720788395953,0.17612049,57403.0,57400.0,0.08511435]
[1720788395954,0.17612049,57406.0,57400.0,0.11889231]
[1720788396215,0.15658578,57401.0,57399.0,0.0646]
[1720788396437,0.17612049,57404.0,57399.0,0.0001]
[1720788396662,0.02903625,57403.0,57399.0,0.0001]
[1720788396885,0.17612049,57403.0,57399.0,0.0001]
[1720788397102,0.03534985,57402.0,57399.0,0.0001]
[1720788397329,0.2542,57400.0,57399.0,0.0001]
[1720788397558,0.28954855,57400.0,57399.0,0.0001]
[1720788397829,0.81532145,57400.0,57399.0,0.0001]
[1720788398059,0.81532145,57400.0,57377.0,0.0956617]
[1720788398060,0.2,57391.0,57377.0,0.0956617]
[1720788398299,0.17608808,57386.0,57385.0,0.51068611]
[1720788398546,0.2542,57384.0,57378.0,0.0956617]
[1720788398780,0.15645925,57380.0,57378.0,0.0956617]
[1720788399004,0.1918078,57380.0,57378.0,0.0956617]
[1720788399473,0.03524855,57380.0,57379.0,0.21546701]
[1720788399706,0.03514855,57380.0,57379.0,0.21546701]
[1720788400672,0.13035264,57381.0,57380.0,0.21455401]
[1720788400929,0.00306353,57385.0,57384.0,0.21455401]
[1720788401154,0.0605,57397.0,57383.0,0.0956617]
[1720788401155,0.1594602,57388.0,57383.0,0.0956617]
[1720788401375,0.10635131,57392.0,57386.0,0.0956617]
[1720788401621,0.26332708,57394.0,57387.0,0.11889231]
[1720788402075,0.26322708,57394.0,57387.0,0.11889231]
[1720788403062,0.26322708,57394.0,57390.0,0.0956617]
[1720788403063,0.00912708,57394.0,57390.0,0.0956617]
[1720788403284,0.66868872,57401.0,57398.0,0.0956617]
[1720788403514,1.0027,57406.0,57393.0,0.21455401]
[1720788403515,0.2542,57406.0,57393.0,0.21455401]
[1720788403738,0.00918635,57401.0,57393.0,0.21455401]
[1720788403959,0.2542,57406.0,57394.0,0.11889231]
[1720788404695,0.35699329,57410.0,57401.0,0.0001]
[1720788404943,1.07513905,57411.0,57401.0,0.02822106]
[1720788405171,0.00942279,57410.0,57403.0,0.02812106]
[1720788405397,0.98298872,57411.0,57404.0,0.00306353]
[1720788405398,0.99224392,57411.0,57404.0,0.00306353]
[1720788405853,0.99224392,57411.0,57402.0,0.00306353]
[1720788406086,0.99224392,57411.0,57403.0,0.02812106]
[1720788406323,0.99224392,57411.0,57404.0,0.03118459]
[1720788406559,1.16821257,57411.0,57404.0,0.03118459]
[1720788406797,0.17596865,57410.0,57404.0,0.00306353]
[1720788407055,0.2542,57406.0,57401.0,0.0001]
[1720788407280,0.2542,57406.0,57402.0,0.00306353]
[1720788407506,0.15642215,57403.0,57402.0,0.00306353]
[1720788407724,0.15642215,57403.0,57401.0,0.0001]
[1720788407940,0.03419078,57402.0,57401.0,0.0001]
[1720788408621,0.03419078,57402.0,57401.0,0.14711337]
[1720788408834,0.03422265,57404.0,57403.0,0.14701337]
[1720788409053,0.03422198,57404.0,57403.0,0.09382106]
[1720788409565,0.03422198,57404.0,57403.0,0.21271337]
[1720788410523,0.93214392,57411.0,57408.0,0.02812106]
[1720788410524,0.15642215,57409.0,57408.0,0.02812106]
[1720788410765,0.67794392,57411.0,57409.0,0.02812106]
[1720788410987,0.19102616,57410.0,57409.0,0.02812106]
[1720788411440,0.19102616,57410.0,57408.0,0.02812106]
[1720788411686,0.15645647,57410.0,57409.0,0.03118459]
[1720788411908,0.19087568,57410.0,57409.0,0.03118459]
[1720788412151,0.19087568,57410.0,57409.0,0.02812106]
[1720788412605,0.19087568,57410.0,57409.0,0.14701337]
[1720788412606,0.03441921,57410.0,57409.0,0.14701337]
[1720788412831,0.03441921,57410.0,57409.0,0.16202106]
[1720788413073,0.03441921,57410.0,57409.0,0.14701337]